[Event "December 19 Late 2023"]
[Site "https://www.chess.com"]
[Date "2023.12.19"]
[Round "6"]
[White "Rastbod, Ali"]
[Black "Esipenko, Andrey"]
[Result "0-1"]
[Board "13"]
[TimeControl "180+1"]
[WhiteFideId "12567477"]
[BlackFideId "24175439"]
[WhiteElo "2209"]
[BlackElo "2615"]
[WhiteTeam "IRI"]
[BlackTeam "FID"]
[WhiteClock "0:00:00"]
[BlackClock "0:00:06"]

1. c4 {[%clk 0:03:00]}  e5 {[%clk 0:02:59]} 2. Nc3 {[%clk 0:03:01]}  Nf6 {[%clk 0:02:58]} 3. Nf3 {[%clk 0:03:02]}  Nc6 {[%clk 0:02:58]} 4. g3 {[%clk 0:03:02]}  Bb4 {[%clk 0:02:53]} 5. Bg2 {[%clk 0:03:01]}  O-O {[%clk 0:02:52]} 6. O-O {[%clk 0:03:02]}  e4 {[%clk 0:02:53]} 7. Ng5 {[%clk 0:03:02]}  Bxc3 {[%clk 0:02:53]} 8. bxc3 {[%clk 0:03:03]}  Re8 {[%clk 0:02:51]} 9. d3 {[%clk 0:03:00]}  exd3 {[%clk 0:02:44]} 10. exd3 {[%clk 0:03:01]}  h6 {[%clk 0:02:37]} 11. Ne4 {[%clk 0:02:38]}  d6 {[%clk 0:02:34]} 12. Rb1 {[%clk 0:02:33]}  Nxe4 {[%clk 0:02:01]} 13. Bxe4 {[%clk 0:02:34]}  Qf6 {[%clk 0:01:58]} 14. Bd2 {[%clk 0:02:28]}  Ne5 {[%clk 0:01:46]} 15. Bf4 {[%clk 0:01:46]}  Ng6 {[%clk 0:01:10]} 16. Be3 {[%clk 0:01:43]}  c6 {[%clk 0:01:10]} 17. Bd4 {[%clk 0:01:36]}  Qg5 {[%clk 0:01:02]} 18. f4 {[%clk 0:01:35]}  Qd8 {[%clk 0:01:02]} 19. Qh5 {[%clk 0:01:27]}  Nf8 {[%clk 0:00:59]} 20. f5 {[%clk 0:01:24]}  f6 {[%clk 0:00:52]} 21. h4 {[%clk 0:01:21]}  Re7 {[%clk 0:00:46]} 22. Rbe1 {[%clk 0:01:04]}  Bd7 {[%clk 0:00:45]} 23. Qf3 {[%clk 0:01:01]}  Be8 {[%clk 0:00:39]} 24. Qf4 {[%clk 0:01:01]}  c5 {[%clk 0:00:27]} 25. Bf2 {[%clk 0:00:50]}  Bc6 {[%clk 0:00:26]} 26. Bxc6 {[%clk 0:00:38]}  bxc6 {[%clk 0:00:26]} 27. g4 {[%clk 0:00:38]}  Qd7 {[%clk 0:00:19]} 28. Rxe7 {[%clk 0:00:37]}  Qxe7 {[%clk 0:00:19]} 29. Re1 {[%clk 0:00:38]}  Qd7 {[%clk 0:00:18]} 30. Bg3 {[%clk 0:00:25]}  Rd8 {[%clk 0:00:18]} 31. g5 {[%clk 0:00:24]}  hxg5 {[%clk 0:00:18]} 32. hxg5 {[%clk 0:00:25]}  fxg5 {[%clk 0:00:18]} 33. Qxg5 {[%clk 0:00:26]}  Re8 {[%clk 0:00:12]} 34. Rxe8 {[%clk 0:00:24]}  Qxe8 {[%clk 0:00:13]} 35. Bxd6 {[%clk 0:00:24]}  Qe1+ {[%clk 0:00:14]} 36. Kg2 {[%clk 0:00:17]}  Qe2+ {[%clk 0:00:14]} 37. Kg1 {[%clk 0:00:16]}  Qxd3 {[%clk 0:00:03]} 38. Be5 {[%clk 0:00:06]}  Qd1+ {[%clk 0:00:03]} 39. Kf2 {[%clk 0:00:05]}  Qd7 {[%clk 0:00:04]} 40. f6 {[%clk 0:00:04]}  g6 {[%clk 0:00:04]} 41. Ke3 {[%clk 0:00:03]}  Kf7 {[%clk 0:00:03]} 42. Ke4 {[%clk 0:00:03]}  Qd1 {[%clk 0:00:03]} 43. Qh6 {[%clk 0:00:03]}  Qe2+ {[%clk 0:00:04]} 44. Qe3 {[%clk 0:00:02]}  Qxc4+ {[%clk 0:00:04]} 45. Kf3 {[%clk 0:00:02]}  Ne6 {[%clk 0:00:04]} 46. Kg3 {[%clk 0:00:01]}  Qd5 {[%clk 0:00:05]} 47. Bb8 {[%clk 0:00:01]}  Kxf6 {[%clk 0:00:04]} 48. Kg4 {[%clk 0:00:01]}  a5 {[%clk 0:00:04]} 49. Kg3 {[%clk 0:00:02]}  a4 {[%clk 0:00:04]} 50. c4 {[%clk 0:00:02]}  Qxc4 {[%clk 0:00:04]} 51. Be5+ {[%clk 0:00:02]}  Kf5 {[%clk 0:00:05]} 52. Bb8 {[%clk 0:00:02]}  Qg4+ {[%clk 0:00:05]} 53. Kf2 {[%clk 0:00:02]}  Qd4 {[%clk 0:00:05]} 54. Kf3 {[%clk 0:00:01]}  Qxe3+ {[%clk 0:00:05]} 55. Kxe3 {[%clk 0:00:02]}  g5 {[%clk 0:00:06]} 56. Ba7 {[%clk 0:00:00]}  g4 {[%clk 0:00:06]} 0-1

[Event "December 19 Late 2023"]
[Site "https://www.chess.com"]
[Date "2023.12.19"]
[Round "6"]
[White "Poormosavi, Seyed Kian"]
[Black "Ivic, Velimir"]
[Result "0-1"]
[Board "14"]
[TimeControl "180+1"]
[WhiteFideId "12585807"]
[BlackFideId "950122"]
[WhiteElo "2296"]
[BlackElo "2542"]
[WhiteTeam "IRI"]
[BlackTeam "SRB"]
[WhiteClock "0:00:25"]
[BlackClock "0:02:19"]

1. Nf3 {[%clk 0:02:56]}  Nf6 {[%clk 0:02:59]} 2. g3 {[%clk 0:02:56]}  g6 {[%clk 0:03:00]} 3. Bg2 {[%clk 0:02:57]}  Bg7 {[%clk 0:03:01]} 4. d4 {[%clk 0:02:58]}  O-O {[%clk 0:03:02]} 5. Kf1 {[%clk 0:02:58]}  d6 {[%clk 0:03:03]} 6. c3 {[%clk 0:02:57]}  Nbd7 {[%clk 0:03:04]} 7. h3 {[%clk 0:02:56]}  e5 {[%clk 0:03:04]} 8. Kg1 {[%clk 0:02:55]}  e4 {[%clk 0:03:05]} 9. Ne1 {[%clk 0:02:53]}  d5 {[%clk 0:03:05]} 10. Kh2 {[%clk 0:02:53]}  h5 {[%clk 0:03:06]} 11. Nc2 {[%clk 0:02:47]}  h4 {[%clk 0:03:05]} 12. g4 {[%clk 0:02:41]}  c6 {[%clk 0:03:05]} 13. f4 {[%clk 0:02:38]}  exf3 {[%clk 0:03:04]} 14. exf3 {[%clk 0:02:28]}  Qc7+ {[%clk 0:03:03]} 15. f4 {[%clk 0:02:29]}  Ne4 {[%clk 0:03:04]} 16. Qf3 {[%clk 0:02:22]}  f5 {[%clk 0:03:04]} 17. Rf1 {[%clk 0:02:04]}  Ndf6 {[%clk 0:03:05]} 18. gxf5 {[%clk 0:01:58]}  Bxf5 {[%clk 0:03:06]} 19. Ne3 {[%clk 0:01:57]}  Nh5 {[%clk 0:03:06]} 20. Ng4 {[%clk 0:01:41]}  Neg3 {[%clk 0:02:59]} 21. Rf2 {[%clk 0:01:38]}  Be4 {[%clk 0:02:59]} 22. Qd1 {[%clk 0:01:32]}  Nxf4 {[%clk 0:02:54]} 23. Bxf4 {[%clk 0:00:59]}  Rxf4 {[%clk 0:02:55]} 24. Kg1 {[%clk 0:00:50]}  Raf8 {[%clk 0:02:45]} 25. Nd2 {[%clk 0:00:44]}  Rxf2 {[%clk 0:02:25]} 26. Nxf2 {[%clk 0:00:45]}  Bxg2 {[%clk 0:02:26]} 27. Kxg2 {[%clk 0:00:46]}  Qf4 {[%clk 0:02:26]} 28. Nf3 {[%clk 0:00:39]}  Nf5 {[%clk 0:02:26]} 29. Ng4 {[%clk 0:00:32]}  Qg3+ {[%clk 0:02:24]} 30. Kh1 {[%clk 0:00:33]}  Qxh3+ {[%clk 0:02:24]} 31. Ngh2 {[%clk 0:00:29]}  Bh6 {[%clk 0:02:20]} 32. Qf1 {[%clk 0:00:25]}  Ng3+ {[%clk 0:02:19]} 0-1

[Event "December 19 Late 2023"]
[Site "https://www.chess.com"]
[Date "2023.12.19"]
[Round "6"]
[White "Sanal, Vahap"]
[Black "Weetik, Vjacheslav"]
[Result "0-1"]
[Board "15"]
[TimeControl "180+1"]
[WhiteFideId "6300545"]
[BlackFideId "4153472"]
[WhiteElo "2637"]
[BlackElo "2469"]
[WhiteTeam "TUR"]
[BlackTeam "RUS"]
[WhiteClock "0:01:01"]
[BlackClock "0:01:28"]

1. e4 {[%clk 0:03:00]}  c6 {[%clk 0:02:58]} 2. Nf3 {[%clk 0:02:59]}  d5 {[%clk 0:02:59]} 3. d3 {[%clk 0:03:00]}  Bg4 {[%clk 0:02:56]} 4. Nbd2 {[%clk 0:02:59]}  e6 {[%clk 0:02:51]} 5. h3 {[%clk 0:02:57]}  Bh5 {[%clk 0:02:50]} 6. g4 {[%clk 0:02:58]}  Bg6 {[%clk 0:02:50]} 7. h4 {[%clk 0:02:58]}  h6 {[%clk 0:02:37]} 8. Qe2 {[%clk 0:02:51]}  Nd7 {[%clk 0:02:33]} 9. Bg2 {[%clk 0:02:52]}  Bb4 {[%clk 0:02:14]} 10. c3 {[%clk 0:02:51]}  Ba5 {[%clk 0:02:14]} 11. d4 {[%clk 0:02:51]}  Ngf6 {[%clk 0:02:11]} 12. e5 {[%clk 0:02:51]}  Ne4 {[%clk 0:02:11]} 13. h5 {[%clk 0:02:51]}  Bh7 {[%clk 0:02:11]} 14. Nb3 {[%clk 0:02:47]}  Bb6 {[%clk 0:02:02]} 15. Nh4 {[%clk 0:02:43]}  Qc7 {[%clk 0:01:53]} 16. f3 {[%clk 0:02:42]}  Ng3 {[%clk 0:01:52]} 17. Qd1 {[%clk 0:02:26]}  Nxe5 {[%clk 0:01:37]} 18. Kf2 {[%clk 0:01:05]}  Nd3+ {[%clk 0:01:29]} 19. Kg1 {[%clk 0:01:06]}  Nxh1 {[%clk 0:01:28]} 20. Kxh1 {[%clk 0:01:01]}  Nf2+ {[%clk 0:01:28]} 0-1

[Event "December 19 Late 2023"]
[Site "https://www.chess.com"]
[Date "2023.12.19"]
[Round "6"]
[White "Khismatullin, Denis"]
[Black "Zhu, Jiner"]
[Result "1-0"]
[Board "16"]
[TimeControl "180+1"]
[WhiteFideId "4142578"]
[BlackFideId "8608059"]
[WhiteElo "2552"]
[BlackElo "2384"]
[WhiteTeam "RUS"]
[BlackTeam "CHN"]
[WhiteClock "0:00:28"]
[BlackClock "0:00:00"]

1. c4 {[%clk 0:03:00]}  Nf6 {[%clk 0:02:58]} 2. Nc3 {[%clk 0:03:00]}  g6 {[%clk 0:02:59]} 3. e4 {[%clk 0:02:58]}  Bg7 {[%clk 0:02:59]} 4. d4 {[%clk 0:02:58]}  d6 {[%clk 0:03:00]} 5. Nf3 {[%clk 0:02:58]}  O-O {[%clk 0:03:00]} 6. Be2 {[%clk 0:02:59]}  e5 {[%clk 0:03:00]} 7. d5 {[%clk 0:02:58]}  a5 {[%clk 0:02:59]} 8. Bg5 {[%clk 0:02:56]}  h6 {[%clk 0:02:54]} 9. Bh4 {[%clk 0:02:56]}  Na6 {[%clk 0:02:51]} 10. O-O {[%clk 0:02:56]}  Nc5 {[%clk 0:02:51]} 11. Nd2 {[%clk 0:02:54]}  Bd7 {[%clk 0:02:41]} 12. Kh1 {[%clk 0:02:50]}  Qe8 {[%clk 0:02:40]} 13. b3 {[%clk 0:02:48]}  Nh7 {[%clk 0:02:39]} 14. a3 {[%clk 0:02:45]}  f5 {[%clk 0:02:34]} 15. f3 {[%clk 0:02:42]}  f4 {[%clk 0:02:30]} 16. b4 {[%clk 0:02:39]}  Na6 {[%clk 0:02:30]} 17. Rb1 {[%clk 0:02:37]}  h5 {[%clk 0:02:16]} 18. Bf2 {[%clk 0:02:37]}  axb4 {[%clk 0:02:09]} 19. axb4 {[%clk 0:02:36]}  g5 {[%clk 0:02:08]} 20. c5 {[%clk 0:02:35]}  Rf6 {[%clk 0:02:08]} 21. c6 {[%clk 0:02:33]}  Bc8 {[%clk 0:01:58]} 22. Ra1 {[%clk 0:02:33]}  b5 {[%clk 0:01:42]} 23. Nxb5 {[%clk 0:02:27]}  Qg6 {[%clk 0:01:41]} 24. Nc3 {[%clk 0:02:05]}  g4 {[%clk 0:01:41]} 25. b5 {[%clk 0:02:03]}  g3 {[%clk 0:01:41]} 26. Bg1 {[%clk 0:02:02]}  h4 {[%clk 0:01:40]} 27. Re1 {[%clk 0:01:39]}  h3 {[%clk 0:01:19]} 28. Bf1 {[%clk 0:01:39]}  Qg5 {[%clk 0:01:08]} 29. gxh3 {[%clk 0:01:24]}  Rg6 {[%clk 0:00:50]} 30. Qe2 {[%clk 0:01:24]}  Nf6 {[%clk 0:00:43]} 31. Rxa6 {[%clk 0:01:17]}  Bxa6 {[%clk 0:00:24]} 32. bxa6 {[%clk 0:01:17]}  Nh5 {[%clk 0:00:24]} 33. Ra1 {[%clk 0:01:04]}  Bf6 {[%clk 0:00:22]} 34. a7 {[%clk 0:00:58]}  Kh7 {[%clk 0:00:22]} 35. Nb5 {[%clk 0:00:49]}  gxh2 {[%clk 0:00:07]} 36. Bxh2 {[%clk 0:00:47]}  Rag8 {[%clk 0:00:08]} 37. a8=Q {[%clk 0:00:32]}  Rxa8 {[%clk 0:00:03]} 38. Rxa8 {[%clk 0:00:32]}  Qh4 {[%clk 0:00:00]} 39. Bg2 {[%clk 0:00:28]} 1-0

[Event "December 19 Late 2023"]
[Site "https://www.chess.com"]
[Date "2023.12.19"]
[Round "6"]
[White "Melkumyan, Hrant"]
[Black "Pulpan, Jakub"]
[Result "0-1"]
[Board "21"]
[TimeControl "180+1"]
[WhiteFideId "13302485"]
[BlackFideId "302759"]
[WhiteElo "2604"]
[BlackElo "2501"]
[WhiteTeam "ARM"]
[BlackTeam "CZE"]
[WhiteClock "0:00:00"]
[BlackClock "0:00:38"]

1. Nf3 {[%clk 0:03:00]}  d5 {[%clk 0:02:58]} 2. d4 {[%clk 0:03:00]}  Nf6 {[%clk 0:02:59]} 3. Bf4 {[%clk 0:03:01]}  c5 {[%clk 0:02:58]} 4. e3 {[%clk 0:03:01]}  Nc6 {[%clk 0:02:59]} 5. Nbd2 {[%clk 0:03:01]}  e6 {[%clk 0:02:59]} 6. c3 {[%clk 0:03:01]}  Be7 {[%clk 0:02:59]} 7. h3 {[%clk 0:02:59]}  Bd6 {[%clk 0:02:59]} 8. Bxd6 {[%clk 0:02:52]}  Qxd6 {[%clk 0:02:59]} 9. Bd3 {[%clk 0:02:52]}  O-O {[%clk 0:02:58]} 10. Qe2 {[%clk 0:02:53]}  e5 {[%clk 0:02:58]} 11. dxc5 {[%clk 0:02:53]}  Qxc5 {[%clk 0:02:57]} 12. e4 {[%clk 0:02:53]}  dxe4 {[%clk 0:02:48]} 13. Nxe4 {[%clk 0:02:54]}  Nxe4 {[%clk 0:02:47]} 14. Qxe4 {[%clk 0:02:55]}  g6 {[%clk 0:02:47]} 15. Qc4 {[%clk 0:02:45]}  Qb6 {[%clk 0:02:40]} 16. O-O-O {[%clk 0:02:26]}  Qxf2 {[%clk 0:02:33]} 17. Be4 {[%clk 0:02:14]}  Be6 {[%clk 0:02:26]} 18. Qa4 {[%clk 0:02:09]}  Qxg2 {[%clk 0:02:01]} 19. Kb1 {[%clk 0:01:59]}  Bf5 {[%clk 0:01:51]} 20. Bxf5 {[%clk 0:01:59]}  Qxf3 {[%clk 0:01:52]} 21. Be4 {[%clk 0:01:59]}  Qf6 {[%clk 0:01:50]} 22. h4 {[%clk 0:01:58]}  Rad8 {[%clk 0:01:49]} 23. h5 {[%clk 0:01:57]}  Rxd1+ {[%clk 0:01:49]} 24. Qxd1 {[%clk 0:01:54]}  Rd8 {[%clk 0:01:48]} 25. Qb3 {[%clk 0:01:51]}  gxh5 {[%clk 0:01:39]} 26. a3 {[%clk 0:01:42]}  Ne7 {[%clk 0:01:38]} 27. Rxh5 {[%clk 0:01:32]}  Ng6 {[%clk 0:01:36]} 28. Qxb7 {[%clk 0:01:27]}  Qf1+ {[%clk 0:01:33]} 29. Ka2 {[%clk 0:01:27]}  Qc4+ {[%clk 0:01:33]} 30. Kb1 {[%clk 0:01:08]}  Rd1+ {[%clk 0:01:23]} 31. Kc2 {[%clk 0:01:08]}  Qe2+ {[%clk 0:01:23]} 32. Kb3 {[%clk 0:01:09]}  Qxh5 {[%clk 0:01:24]} 33. Qxa7 {[%clk 0:01:07]}  Rd8 {[%clk 0:01:20]} 34. a4 {[%clk 0:00:58]}  Qd1+ {[%clk 0:01:19]} 35. Ka2 {[%clk 0:00:59]}  Qd7 {[%clk 0:01:18]} 36. Qa6 {[%clk 0:00:55]}  f5 {[%clk 0:01:07]} 37. Bc2 {[%clk 0:00:49]}  Kg7 {[%clk 0:01:06]} 38. a5 {[%clk 0:00:49]}  e4 {[%clk 0:01:05]} 39. Qb6 {[%clk 0:00:45]}  e3 {[%clk 0:00:55]} 40. Qxe3 {[%clk 0:00:27]}  Qd5+ {[%clk 0:00:55]} 41. Kb1 {[%clk 0:00:27]}  Qxa5 {[%clk 0:00:54]} 42. b4 {[%clk 0:00:28]}  Qe5 {[%clk 0:00:53]} 43. Qb6 {[%clk 0:00:27]}  Rd2 {[%clk 0:00:41]} 44. Qb7+ {[%clk 0:00:00]}  Qe7 {[%clk 0:00:38]} 0-1

[Event "December 19 Late 2023"]
[Site "https://www.chess.com"]
[Date "2023.12.19"]
[Round "6"]
[White "Colbow, Collin"]
[Black "Popov, Konstantin"]
[Result "1/2-1/2"]
[Board "22"]
[TimeControl "180+1"]
[WhiteFideId "16201132"]
[BlackFideId "34137910"]
[WhiteElo "2321"]
[BlackElo "2340"]
[WhiteTeam "GER"]
[BlackTeam "FID"]
[WhiteClock "0:00:05"]
[BlackClock "0:00:03"]

1. e4 {[%clk 0:02:59]}  c5 {[%clk 0:02:50]} 2. Nf3 {[%clk 0:02:58]}  d6 {[%clk 0:02:50]} 3. d4 {[%clk 0:02:59]}  c4 {[%clk 0:02:51]} 4. Bxc4 {[%clk 0:02:58]}  Nf6 {[%clk 0:02:51]} 5. Qe2 {[%clk 0:02:53]}  e6 {[%clk 0:02:49]} 6. e5 {[%clk 0:02:51]}  dxe5 {[%clk 0:02:48]} 7. dxe5 {[%clk 0:02:52]}  Nd5 {[%clk 0:02:48]} 8. O-O {[%clk 0:02:53]}  Nc6 {[%clk 0:02:48]} 9. Rd1 {[%clk 0:02:48]}  Qc7 {[%clk 0:02:42]} 10. Bxd5 {[%clk 0:02:41]}  exd5 {[%clk 0:02:43]} 11. Nc3 {[%clk 0:02:41]}  d4 {[%clk 0:02:36]} 12. Nxd4 {[%clk 0:02:38]}  Nxd4 {[%clk 0:02:34]} 13. Rxd4 {[%clk 0:02:39]}  Bc5 {[%clk 0:02:34]} 14. Nb5 {[%clk 0:02:30]}  Qe7 {[%clk 0:02:27]} 15. Nd6+ {[%clk 0:02:08]}  Bxd6 {[%clk 0:02:25]} 16. Rxd6 {[%clk 0:02:09]}  O-O {[%clk 0:02:24]} 17. Bf4 {[%clk 0:02:02]}  Be6 {[%clk 0:02:19]} 18. b3 {[%clk 0:01:57]}  a6 {[%clk 0:02:14]} 19. c4 {[%clk 0:01:55]}  h6 {[%clk 0:02:14]} 20. h3 {[%clk 0:01:50]}  Rfc8 {[%clk 0:02:13]} 21. Rad1 {[%clk 0:01:48]}  b5 {[%clk 0:02:13]} 22. Qf3 {[%clk 0:00:52]}  bxc4 {[%clk 0:02:08]} 23. bxc4 {[%clk 0:00:53]}  Bxc4 {[%clk 0:01:56]} 24. Rd7 {[%clk 0:00:51]}  Qe8 {[%clk 0:01:56]} 25. Qg3 {[%clk 0:00:34]}  Kh7 {[%clk 0:01:46]} 26. h4 {[%clk 0:00:29]}  Be6 {[%clk 0:01:44]} 27. a3 {[%clk 0:00:27]}  Bxd7 {[%clk 0:01:43]} 28. Qd3+ {[%clk 0:00:25]}  Kg8 {[%clk 0:01:38]} 29. Qxd7 {[%clk 0:00:25]}  Qxd7 {[%clk 0:01:31]} 30. Rxd7 {[%clk 0:00:26]}  Rc3 {[%clk 0:01:32]} 31. e6 {[%clk 0:00:21]}  f6 {[%clk 0:00:50]} 32. Bd6 {[%clk 0:00:17]}  Re8 {[%clk 0:00:49]} 33. e7 {[%clk 0:00:15]}  a5 {[%clk 0:00:45]} 34. Ra7 {[%clk 0:00:15]}  Rc6 {[%clk 0:00:45]} 35. Rd7 {[%clk 0:00:06]}  Kf7 {[%clk 0:00:45]} 36. Bc7 {[%clk 0:00:06]}  a4 {[%clk 0:00:43]} 37. Bd8 {[%clk 0:00:03]}  Rc3 {[%clk 0:00:41]} 38. h5 {[%clk 0:00:02]}  Rxa3 {[%clk 0:00:41]} 39. Ra7 {[%clk 0:00:03]}  Ra1+ {[%clk 0:00:38]} 40. Kh2 {[%clk 0:00:03]}  a3 {[%clk 0:00:39]} 41. f3 {[%clk 0:00:02]}  Ke6 {[%clk 0:00:23]} 42. Ra6+ {[%clk 0:00:02]}  Kd5 {[%clk 0:00:21]} 43. Ra7 {[%clk 0:00:03]}  Kc6 {[%clk 0:00:20]} 44. Kg3 {[%clk 0:00:02]}  Kd5 {[%clk 0:00:17]} 45. Ra5+ {[%clk 0:00:03]}  Ke6 {[%clk 0:00:17]} 46. Ra8 {[%clk 0:00:03]}  Rh1 {[%clk 0:00:12]} 47. Ra6+ {[%clk 0:00:04]}  Kf7 {[%clk 0:00:11]} 48. Rxa3 {[%clk 0:00:05]}  Rxh5 {[%clk 0:00:12]} 49. Ra7 {[%clk 0:00:04]}  Rd5 {[%clk 0:00:12]} 50. Kf2 {[%clk 0:00:03]}  Kg6 {[%clk 0:00:12]} 51. Kg3 {[%clk 0:00:03]}  h5 {[%clk 0:00:12]} 52. Kf2 {[%clk 0:00:03]}  h4 {[%clk 0:00:11]} 53. Ra4 {[%clk 0:00:03]}  Kh5 {[%clk 0:00:11]} 54. Ra2 {[%clk 0:00:03]}  g5 {[%clk 0:00:10]} 55. Rb2 {[%clk 0:00:03]}  Kg6 {[%clk 0:00:10]} 56. Ra2 {[%clk 0:00:04]}  Rd7 {[%clk 0:00:08]} 57. Rb2 {[%clk 0:00:04]}  Rexe7 {[%clk 0:00:09]} 58. Bxe7 {[%clk 0:00:04]}  Rxe7 {[%clk 0:00:09]} 59. Ra2 {[%clk 0:00:03]}  Re5 {[%clk 0:00:10]} 60. Rb2 {[%clk 0:00:04]}  Rc5 {[%clk 0:00:10]} 61. Ra2 {[%clk 0:00:04]}  Kf5 {[%clk 0:00:11]} 62. Rb2 {[%clk 0:00:05]}  Ke5 {[%clk 0:00:11]} 63. Ra2 {[%clk 0:00:05]}  Kd4 {[%clk 0:00:12]} 64. Rd2+ {[%clk 0:00:06]}  Ke5 {[%clk 0:00:10]} 65. Ra2 {[%clk 0:00:06]}  Rc4 {[%clk 0:00:10]} 66. Rb2 {[%clk 0:00:07]}  f5 {[%clk 0:00:10]} 67. Ra2 {[%clk 0:00:03]}  Kf4 {[%clk 0:00:11]} 68. Rb2 {[%clk 0:00:02]}  g4 {[%clk 0:00:10]} 69. fxg4 {[%clk 0:00:02]}  fxg4 {[%clk 0:00:10]} 70. g3+ {[%clk 0:00:03]}  hxg3+ {[%clk 0:00:08]} 71. Kg2 {[%clk 0:00:03]}  Rd4 {[%clk 0:00:09]} 72. Rb1 {[%clk 0:00:03]}  Rd2+ {[%clk 0:00:09]} 73. Kg1 {[%clk 0:00:04]}  Rf2 {[%clk 0:00:05]} 74. Rb3 {[%clk 0:00:04]}  Rf3 {[%clk 0:00:04]} 75. Rb1 {[%clk 0:00:05]}  Rd3 {[%clk 0:00:03]} 76. Rc1 {[%clk 0:00:05]}  Rd2 {[%clk 0:00:03]} 77. Rb1 {[%clk 0:00:05]}  Kf3 {[%clk 0:00:03]} 78. Rb3+ {[%clk 0:00:05]}  Kf4 {[%clk 0:00:03]} 79. Rb1 {[%clk 0:00:05]} 1/2-1/2

[Event "December 19 Late 2023"]
[Site "https://www.chess.com"]
[Date "2023.12.19"]
[Round "6"]
[White "Sabuk, Piotr"]
[Black "Szpar, Milosz"]
[Result "0-1"]
[Board "23"]
[TimeControl "180+1"]
[WhiteFideId "1137565"]
[BlackFideId "1184989"]
[WhiteElo "2276"]
[BlackElo "2446"]
[WhiteTeam "POL"]
[BlackTeam "POL"]
[WhiteClock "0:00:07"]
[BlackClock "0:00:10"]

1. d4 {[%clk 0:02:41]}  d5 {[%clk 0:02:57]} 2. c4 {[%clk 0:02:39]}  c6 {[%clk 0:02:58]} 3. Nf3 {[%clk 0:02:38]}  Nf6 {[%clk 0:02:58]} 4. Nc3 {[%clk 0:02:37]}  dxc4 {[%clk 0:02:58]} 5. a4 {[%clk 0:02:34]}  Bf5 {[%clk 0:02:58]} 6. Ne5 {[%clk 0:02:33]}  Nbd7 {[%clk 0:02:55]} 7. Nxc4 {[%clk 0:02:33]}  Nb6 {[%clk 0:02:55]} 8. Ne5 {[%clk 0:02:32]}  a5 {[%clk 0:02:56]} 9. h4 {[%clk 0:02:24]}  Nfd7 {[%clk 0:02:43]} 10. e4 {[%clk 0:02:14]}  Nxe5 {[%clk 0:02:32]} 11. exf5 {[%clk 0:02:13]}  Ned7 {[%clk 0:02:28]} 12. g4 {[%clk 0:01:54]}  g6 {[%clk 0:02:21]} 13. fxg6 {[%clk 0:01:43]}  hxg6 {[%clk 0:02:20]} 14. Bg2 {[%clk 0:01:35]}  Qc7 {[%clk 0:02:12]} 15. Qb3 {[%clk 0:01:31]}  Bg7 {[%clk 0:02:10]} 16. Be3 {[%clk 0:01:29]}  e6 {[%clk 0:02:04]} 17. Rc1 {[%clk 0:01:27]}  Rd8 {[%clk 0:01:35]} 18. d5 {[%clk 0:01:15]}  exd5 {[%clk 0:01:29]} 19. Nxd5 {[%clk 0:01:12]}  Nxd5 {[%clk 0:01:28]} 20. Bxd5 {[%clk 0:01:12]}  Ne5 {[%clk 0:01:12]} 21. Ke2 {[%clk 0:00:57]}  Qc8 {[%clk 0:00:41]} 22. Bf3 {[%clk 0:00:52]}  Nxg4 {[%clk 0:00:32]} 23. Bb6 {[%clk 0:00:46]}  O-O {[%clk 0:00:31]} 24. Bxd8 {[%clk 0:00:44]}  Rxd8 {[%clk 0:00:32]} 25. Kf1 {[%clk 0:00:40]}  Qf5 {[%clk 0:00:17]} 26. Rd1 {[%clk 0:00:30]}  Re8 {[%clk 0:00:16]} 27. Kg2 {[%clk 0:00:28]}  Ne5 {[%clk 0:00:15]} 28. Rhe1 {[%clk 0:00:26]}  Bf6 {[%clk 0:00:14]} 29. Be4 {[%clk 0:00:24]}  Qg4+ {[%clk 0:00:07]} 30. Qg3 {[%clk 0:00:24]}  Qxh4 {[%clk 0:00:05]} 31. Qxh4 {[%clk 0:00:23]}  Bxh4 {[%clk 0:00:06]} 32. Re2 {[%clk 0:00:20]}  Kf8 {[%clk 0:00:04]} 33. Bc2 {[%clk 0:00:18]}  f6 {[%clk 0:00:02]} 34. f4 {[%clk 0:00:15]}  Nc4 {[%clk 0:00:03]} 35. Rxe8+ {[%clk 0:00:14]}  Kxe8 {[%clk 0:00:04]} 36. Kf3 {[%clk 0:00:14]}  Nxb2 {[%clk 0:00:02]} 37. Rb1 {[%clk 0:00:13]}  Nc4 {[%clk 0:00:03]} 38. Rxb7 {[%clk 0:00:13]}  g5 {[%clk 0:00:04]} 39. f5 {[%clk 0:00:08]}  Ne5+ {[%clk 0:00:04]} 40. Ke4 {[%clk 0:00:08]}  g4 {[%clk 0:00:04]} 41. Bd1 {[%clk 0:00:08]}  g3 {[%clk 0:00:05]} 42. Bh5+ {[%clk 0:00:08]}  Kf8 {[%clk 0:00:04]} 43. Bf3 {[%clk 0:00:08]}  Bg5 {[%clk 0:00:05]} 44. Ra7 {[%clk 0:00:07]}  Bd2 {[%clk 0:00:05]} 45. Rc7 {[%clk 0:00:04]}  Ke8 {[%clk 0:00:05]} 46. Rb7 {[%clk 0:00:05]}  Kd8 {[%clk 0:00:05]} 47. Rb2 {[%clk 0:00:04]}  Bb4 {[%clk 0:00:05]} 48. Rc2 {[%clk 0:00:04]}  Kc7 {[%clk 0:00:05]} 49. Bg2 {[%clk 0:00:04]}  Kd6 {[%clk 0:00:05]} 50. Kf4 {[%clk 0:00:04]}  Be1 {[%clk 0:00:04]} 51. Re2 {[%clk 0:00:03]}  Bf2 {[%clk 0:00:05]} 52. Rd2+ {[%clk 0:00:04]}  Kc7 {[%clk 0:00:05]} 53. Rc2 {[%clk 0:00:03]}  Nd3+ {[%clk 0:00:05]} 54. Kg4 {[%clk 0:00:03]}  Ne1 {[%clk 0:00:05]} 55. Rxf2 {[%clk 0:00:01]}  gxf2 {[%clk 0:00:04]} 56. Bf1 {[%clk 0:00:02]}  Nc2 {[%clk 0:00:05]} 57. Kg3 {[%clk 0:00:02]}  Ne3 {[%clk 0:00:04]} 58. Kxf2 {[%clk 0:00:01]}  Nxf1 {[%clk 0:00:05]} 59. Kxf1 {[%clk 0:00:02]}  Kd6 {[%clk 0:00:05]} 60. Ke2 {[%clk 0:00:03]}  Ke5 {[%clk 0:00:06]} 61. Kd3 {[%clk 0:00:03]}  Kxf5 {[%clk 0:00:07]} 62. Kc4 {[%clk 0:00:04]}  Ke5 {[%clk 0:00:06]} 63. Kc5 {[%clk 0:00:05]}  f5 {[%clk 0:00:07]} 64. Kxc6 {[%clk 0:00:06]}  f4 {[%clk 0:00:07]} 65. Kb5 {[%clk 0:00:07]}  f3 {[%clk 0:00:08]} 66. Kxa5 {[%clk 0:00:07]}  f2 {[%clk 0:00:09]} 67. Kb6 {[%clk 0:00:08]}  f1=Q {[%clk 0:00:09]} 68. a5 {[%clk 0:00:09]}  Qf3 {[%clk 0:00:09]} 69. a6 {[%clk 0:00:10]}  Qa8 {[%clk 0:00:10]} 70. a7 {[%clk 0:00:07]}  Kd6 {[%clk 0:00:10]} 0-1